Workbook

Sheet Sheet1
A1: 梧州市2025年面向社会公开考试招聘中小学（幼儿园）教师考试总成绩汇总表(梧州市直)
A2: 序号 | B2: 姓名 | C2: 性别 | D2: 民族 | E2: 准考证号码 | F2: 招考单位名称 | G2: 报考岗位 | H2: 报考岗位代码 | I2: 招考人数 | J2: 进入面试范围人选最低笔试成绩 | K2: 职业能力倾向测验分数 | L2: 综合应用能力分数 | M2: 笔试总分（职业能力倾向测验+综合应用能力） | N2: 结构化面试原始成绩 | O2: 结构化面试折算成绩 | P2: 课堂片段教学面试原始成绩 | Q2: 课堂片段教学面试折算成绩 | R2: 面试成绩 | S2: 考试 总成绩 | T2: 排名
A3: 1 | B3: 周子扬 | C3: 女 | D3: 汉族 | E3: 4245040401924 | F3: 梧州市综合性特殊教育学校 | G3: 特殊教育教师 | H3: 1450400941 | I3: 1 | J3: 108.50 | K3: 100 | L3: 66 | M3: 166 | N3: 80.86 | O3: =N3*0.5 -> 40.43 | P3: 83.4 | Q3: =P3*0.5 -> 41.7 | R3: =O3+Q3 -> 82.13 | S3: =M3/3*50%+R3*50% -> 68.73 | T3: 1
A4: 2 | B4: 李海玲 | C4: 女 | D4: 汉族 | E4: 4245040400122 | K4: 62 | L4: 60.5 | M4: 122.5 | N4: 77.62 | O4: 38.81 | P4: 82.3 | Q4: 41.15 | R4: 79.96 | S4: 60.40 | T4: 2
A5: 3 | B5: 邓毅 | C5: 男 | D5: 汉族 | E5: 4245040402516 | K5: 55.5 | L5: 53 | M5: 108.5 | N5: 74.2 | O5: 37.1 | P5: 75.1 | Q5: 37.55 | R5: 74.65 | S5: 55.41 | T5: 3
A6: 4 | B6: 杨颂伟 | C6: 男 | D6: 汉族 | E6: 4245040402415 | F6: 梧州市综合性特殊教育学校 | G6: 体育教师 | H6: 1450400942 | I6: 1 | J6: 116.50 | K6: 83 | L6: 61 | M6: 144 | N6: 84.08 | O6: 42.04 | P6: 84.6 | Q6: 42.3 | R6: 84.34 | S6: 66.17 | T6: 1
A7: 5 | B7: 杨洋 | C7: 男 | D7: 汉族 | E7: 4245041401604 | K7: 71.5 | L7: 71.5 | M7: 143 | N7: 76.32 | O7: 38.16 | P7: 76.8 | Q7: 38.4 | R7: 76.56 | S7: 62.11 | T7: 2
A8: 6 | B8: 梁庆锋 | C8: 男 | D8: 壮族 | E8: 4245040402402 | K8: 67.5 | L8: 49 | M8: 116.5 | N8: 0 | O8: 0 | P8: 0 | Q8: 0 | R8: 0.00 | S8: 19.42 | T8: 3
A9: 7 | B9: 邓文文 | C9: 男 | D9: 汉族 | E9: 4245040400304 | F9: 梧州市第二十三中学 | G9: 音乐教师 | H9: 1450400944 | I9: 1 | J9: 114.50 | K9: 71 | L9: 70 | M9: 141 | N9: 79.72 | O9: 39.86 | P9: 84.9 | Q9: 42.45 | R9: =O9+Q9 -> 82.31 | S9: 64.66 | T9: 1
A10: 8 | B10: 李鹏翀 | C10: 男 | D10: 汉族 | E10: 4245040401820 | K10: 60.5 | L10: 54 | M10: 114.5 | N10: 71.7 | O10: 35.85 | P10: 80.1 | Q10: 40.05 | R10: 75.90 | S10: 57.03 | T10: 2
A11: 9 | B11: 滕英专 | C11: 男 | D11: 壮族 | E11: 4245040402101 | F11: 梧州市第二十三中学 | G11: 美术教师 | H11: 1450400945 | I11: 1 | J11: 143.50 | K11: 77.5 | L11: 75.5 | M11: 153 | N11: 65.76 | O11: 32.88 | P11: 68.7 | Q11: 34.35 | R11: 67.23 | S11: 59.12 | T11: 3
A12: 10 | B12: 黎中伟 | C12: 男 | D12: 汉族 | E12: 4245040403010 | K12: 76 | L12: 75 | M12: 151 | N12: 72.6 | O12: 36.3 | P12: 76.76 | Q12: 38.38 | R12: 74.68 | S12: 62.51 | T12: 2
A13: 11 | B13: 江雅庆 | C13: 男 | D13: 瑶族 | E13: 4245040402809 | K13: 76.5 | L13: 67 | M13: 143.5 | N13: 81.1 | O13: 40.55 | P13: 86.5 | Q13: 43.25 | R13: 83.80 | S13: 65.82 | T13: 1
A14: 12 | B14: 莫锦荣 | C14: 男 | D14: 壮族 | E14: 4245040403022 | F14: 梧州市第二十三中学 | G14: 体育教师 | H14: 1450400948 | I14: 1 | J14: 94.50 | K14: 39 | L14: 55.5 | M14: 94.5 | N14: 70.5 | O14: 35.25 | P14: 71.8 | Q14: 35.9 | R14: 71.15 | S14: 51.33 | T14: 1
A15: 13 | B15: 陈思琳 | C15: 女 | D15: 汉族 | E15: 4145042000319 | F15: 梧州市第一幼儿园 | G15: 幼儿教师 | H15: 1450400949 | I15: 1 | J15: 158.00 | K15: 96 | L15: 84 | M15: 180 | N15: 78.54 | O15: 39.27 | P15: 82.7 | Q15: 41.35 | R15: 80.62 | S15: 70.31 | T15: 1
A16: 14 | B16: 吕柳琴 | C16: 女 | D16: 汉族 | E16: 4145042000226 | K16: 87 | L16: 79.5 | M16: 166.5 | N16: 73.96 | O16: 36.98 | P16: 80 | Q16: 40 | R16: 76.98 | S16: 66.24 | T16: 2
A17: 15 | B17: 许锦洁 | C17: 女 | D17: 汉族 | E17: 4145042005118 | K17: 85.5 | L17: 72.5 | M17: 158 | N17: 68.3 | O17: 34.15 | P17: 74.88 | Q17: 37.44 | R17: 71.59 | S17: 62.13 | T17: 3
A18: 16 | B18: 陈家丽 | C18: 女 | D18: 汉族 | E18: 4145042004005 | F18: 梧州市卫生幼儿园 | G18: 幼儿教师 | H18: 1450400950 | I18: 1 | J18: 154.50 | K18: 87 | L18: 87.5 | M18: 174.5 | N18: 73.28 | O18: 36.64 | P18: 76.5 | Q18: 38.25 | R18: 74.89 | S18: 66.53 | T18: 2
A19: 17 | B19: 罗观秀 | C19: 女 | D19: 瑶族 | E19: 4145042003416 | K19: 75 | L19: 85.5 | M19: 160.5 | N19: 69.44 | O19: 34.72 | P19: 77.26 | Q19: 38.63 | R19: 73.35 | S19: 63.43 | T19: 3
A20: 18 | B20: 王意 | C20: 女 | D20: 汉族 | E20: 4145042004011 | K20: 71 | L20: 83.5 | M20: 154.5 | N20: 82.16 | O20: 41.08 | P20: 82.26 | Q20: 41.13 | R20: 82.21 | S20: 66.86 | T20: 1
A21: 19 | B21: 钟梓晴 | C21: 女 | D21: 汉族 | E21: 4245041400219 | F21: 梧州职业学院（梧州市职业教育中心） | G21: 专业技术岗位1 | H21: 1450401249 | I21: 2 | J21: 165.50 | K21: 99 | L21: 76 | M21: 175 | N21: 79.68 | O21: 39.84 | P21: 80.9 | Q21: 40.45 | R21: 80.29 | S21: 69.31 | T21: 1
A22: 20 | B22: 何柳莹 | C22: 女 | D22: 汉族 | E22: 4245041401426 | K22: 100.5 | L22: 72.5 | M22: 173 | N22: 79.4 | O22: 39.7 | P22: 79.88 | Q22: 39.94 | R22: 79.64 | S22: 68.65 | T22: 2
A23: 21 | B23: 韦小玲 | C23: 女 | D23: 汉族 | E23: 4245041401122 | K23: 96 | L23: 76.5 | M23: 172.5 | N23: 79.08 | O23: 39.54 | P23: 80.44 | Q23: 40.22 | R23: 79.76 | S23: 68.63 | T23: 3
A24: 22 | B24: 陈瑶 | C24: 女 | D24: 汉族 | E24: 4245041400211 | K24: 91 | L24: 78.5 | M24: 169.5 | N24: 70.86 | O24: 35.43 | P24: 75.02 | Q24: 37.51 | R24: 72.94 | S24: 64.72 | T24: 4
A25: 23 | B25: 吴美仪 | C25: 女 | D25: 汉族 | E25: 4245041400812 | K25: 93.5 | L25: 75.5 | M25: 169 | N25: 76.26 | O25: 38.13 | P25: 65.4 | Q25: 32.7 | R25: 70.83 | S25: 63.58 | T25: 5
A26: 24 | B26: 梁琼壬 | C26: 女 | D26: 汉族 | E26: 4245041402010 | K26: 91 | L26: 74.5 | M26: 165.5 | N26: 63.7 | O26: 31.85 | P26: 78.02 | Q26: 39.01 | R26: 70.86 | S26: 63.01 | T26: 6
A27: 25 | B27: 曾永橦 | C27: 男 | D27: 汉族 | E27: 4245041400317 | F27: 梧州职业学院（梧州市职业教育中心） | G27: 专业技术岗位2 | H27: 1450401250 | I27: 1 | J27: 160.00 | K27: 100 | L27: 77.5 | M27: 177.5 | N27: 70.12 | O27: 35.06 | P27: 67.92 | Q27: 33.96 | R27: 69.02 | S27: 64.09 | T27: 3
A28: 26 | B28: 陈栩洁 | C28: 女 | D28: 汉族 | E28: 4245041400725 | K28: 89.5 | L28: 82 | M28: 171.5 | N28: 73.78 | O28: 36.89 | P28: 75.78 | Q28: 37.89 | R28: 74.78 | S28: 65.97 | T28: 1
A29: 27 | B29: 黄常鑫 | C29: 男 | D29: 汉族 | E29: 4245041401603 | K29: 77.5 | L29: 82.5 | M29: 160 | N29: 72.88 | O29: 36.44 | P29: 78.06 | Q29: 39.03 | R29: 75.47 | S29: 64.40 | T29: 2
A30: 28 | B30: 梁容 | C30: 女 | D30: 汉族 | E30: 4245041402312 | F30: 梧州职业学院（梧州市职业教育中心） | G30: 专业技术岗位3 | H30: 1450401251 | I30: 1 | J30: 156.50 | K30: 80 | L30: 87 | M30: 167 | N30: 61.6 | O30: 30.8 | P30: 64.8 | Q30: 32.4 | R30: 63.20 | S30: 59.43 | T30: 3
A31: 29 | B31: 陈茂林 | C31: 男 | D31: 汉族 | E31: 4245041400625 | K31: 81 | L31: 78.5 | M31: 159.5 | N31: 66.2 | O31: 33.1 | P31: 72.2 | Q31: 36.1 | R31: 69.20 | S31: 61.18 | T31: 2
A32: 30 | B32: 梁伟婷 | C32: 女 | D32: 汉族 | E32: 4245041401202 | K32: 68.5 | L32: 88 | M32: 156.5 | N32: 67.4 | O32: 33.7 | P32: 75 | Q32: 37.5 | R32: 71.20 | S32: 61.68 | T32: 1
A33: 31 | B33: 熊锐俭 | C33: 女 | D33: 汉族 | E33: 4245041402212 | F33: 梧州职业学院（梧州市职业教育中心） | G33: 专业技术岗位4 | H33: 1450401252 | I33: 1 | J33: 156.50 | K33: 89 | L33: 89 | M33: 178 | N33: 78.92 | O33: 39.46 | P33: 76.96 | Q33: 38.48 | R33: 77.94 | S33: 68.64 | T33: 1
A34: 32 | B34: 黎焱伶 | C34: 女 | D34: 汉族 | E34: 4245041401702 | K34: 86.5 | L34: 77.5 | M34: 164 | N34: 84.1 | O34: 42.05 | P34: 78.22 | Q34: 39.11 | R34: 81.16 | S34: 67.91 | T34: 2
A35: 33 | B35: 白美盈 | C35: 女 | D35: 汉族 | E35: 4245041401622 | K35: 83.5 | L35: 73 | M35: 156.5 | N35: 70.56 | O35: 35.28 | P35: 71.64 | Q35: 35.82 | R35: 71.10 | S35: 61.63 | T35: 3
A36: 34 | B36: 苏钰媛 | C36: 女 | D36: 壮族 | E36: 4245041401419 | F36: 梧州职业学院（梧州市职业教育中心） | G36: 专业技术岗位5 | H36: 1450401253 | I36: 1 | J36: 167.00 | K36: 78 | L36: 94 | M36: 172 | N36: 81.3 | O36: 40.65 | P36: 82.6 | Q36: 41.3 | R36: 81.95 | S36: 69.64 | T36: 1
A37: 35 | B37: 王雯 | C37: 女 | D37: 汉族 | E37: 4245041400517 | K37: 79.5 | L37: 88.5 | M37: 168 | N37: 81.38 | O37: 40.69 | P37: 84.38 | Q37: 42.19 | R37: 82.88 | S37: 69.44 | T37: 2
A38: 36 | B38: 钟华石 | C38: 男 | D38: 汉族 | E38: 4245041400110 | K38: 81 | L38: 86 | M38: 167 | N38: 72.8 | O38: 36.4 | P38: 77.8 | Q38: 38.9 | R38: 75.30 | S38: 65.48 | T38: 3
A39: 37 | B39: 覃金凤 | C39: 女 | D39: 汉族 | E39: 4245041400621 | F39: 梧州职业学院（梧州市职业教育中心） | G39: 专业技术岗位6 | H39: 1450401254 | I39: 1 | J39: 150.50 | K39: 89.5 | L39: 76.5 | M39: 166 | N39: 79.92 | O39: 39.96 | P39: 83.36 | Q39: 41.68 | R39: 81.64 | S39: 68.49 | T39: 1
A40: 38 | B40: 赖钰婷 | C40: 女 | D40: 汉族 | E40: 4245041401428 | K40: 91.5 | L40: 63.5 | M40: 155 | N40: 75.26 | O40: 37.63 | P40: 77.7 | Q40: 38.85 | R40: 76.48 | S40: 64.07 | T40: 3
A41: 39 | B41: 梁家树 | C41: 男 | D41: 汉族 | E41: 4245041402022 | K41: 89 | L41: 61.5 | M41: 150.5 | N41: 84.42 | O41: 42.21 | P41: 86.02 | Q41: 43.01 | R41: 85.22 | S41: 67.69 | T41: 2
A42: 40 | B42: 陈麓伊 | C42: 女 | D42: 汉族 | E42: 4245041402019 | F42: 梧州职业学院（梧州市职业教育中心） | G42: 专业技术岗位7 | H42: 1450401255 | I42: 1 | J42: 132.50 | K42: 85.5 | L42: 88 | M42: 173.5 | N42: 78.62 | O42: 39.31 | P42: 78.1 | Q42: 39.05 | R42: 78.36 | S42: 68.10 | T42: 1
A43: 41 | B43: 黄建森 | C43: 男 | D43: 汉族 | E43: 4245041400703 | K43: 94 | L43: 63 | M43: 157 | N43: 78.26 | O43: 39.13 | P43: 69.4 | Q43: 34.7 | R43: 73.83 | S43: 63.08 | T43: 2
A44: 42 | B44: 甘兴文 | C44: 男 | D44: 汉族 | E44: 4245041400824 | K44: 78.5 | L44: 54 | M44: 132.5 | N44: 70.9 | O44: 35.45 | P44: 70.7 | Q44: 35.35 | R44: 70.80 | S44: 57.48 | T44: 3
A45: 43 | B45: 赖萱仪 | C45: 女 | D45: 汉族 | E45: 4245041401601 | F45: 梧州职业学院（梧州市职业教育中心） | G45: 专业技术岗位8 | H45: 1450401256 | I45: 2 | J45: 146.50 | K45: 88 | L45: 94.5 | M45: 182.5 | N45: 84.6 | O45: 42.3 | P45: 84 | Q45: 42 | R45: 84.30 | S45: 72.57 | T45: 1
A46: 44 | B46: 曹明丽 | C46: 女 | D46: 汉族 | E46: 4245041401108 | K46: 81 | L46: 90.5 | M46: 171.5 | N46: 65.64 | O46: 32.82 | P46: 77.56 | Q46: 38.78 | R46: 71.60 | S46: 64.38 | T46: 5
A47: 45 | B47: 郭弘越 | C47: 男 | D47: 汉族 | E47: 4245041400922 | K47: 94.5 | L47: 77 | M47: 171.5 | N47: 75 | O47: 37.5 | P47: 75 | Q47: 37.5 | R47: 75.00 | S47: 66.08 | T47: 4
A48: 46 | B48: 蒙炜健 | C48: 男 | D48: 汉族 | E48: 4245041400112 | K48: 99.5 | L48: 71 | M48: 170.5 | N48: 83.4 | O48: 41.7 | P48: 82 | Q48: 41 | R48: 82.70 | S48: 69.77 | T48: 2
A49: 47 | B49: 邓永权 | C49: 男 | D49: 汉族 | E49: 4245041400302 | K49: 76 | L49: 83.5 | M49: 159.5 | N49: 80.44 | O49: 40.22 | P49: 79.24 | Q49: 39.62 | R49: 79.84 | S49: 66.50 | T49: 3
A50: 48 | B50: 覃雄 | C50: 男 | D50: 汉族 | E50: 4245041400314 | K50: 65.5 | L50: 81 | M50: 146.5 | N50: 68.72 | O50: 34.36 | P50: 79.46 | Q50: 39.73 | R50: 74.09 | S50: 61.46 | T50: 6
A51: 49 | B51: 黎应锟 | C51: 男 | D51: 汉族 | E51: 4245041400906 | F51: 梧州职业学院（梧州市职业教育中心） | G51: 专业技术岗位9 | H51: 1450401257 | I51: 1 | J51: 150.00 | K51: 103 | L51: 70.5 | M51: 173.5 | N51: 73.4 | O51: 36.7 | P51: 72.98 | Q51: 36.49 | R51: 73.19 | S51: 65.51 | T51: 2
A52: 50 | B52: 徐楚彬 | C52: 男 | D52: 汉族 | E52: 4245041400701 | K52: 85 | L52: 77.5 | M52: 162.5 | N52: 81.96 | O52: 40.98 | P52: 81.38 | Q52: 40.69 | R52: 81.67 | S52: 67.92 | T52: 1
A53: 51 | B53: 刘淑君 | C53: 女 | D53: 汉族 | E53: 4245041400408 | K53: 78 | L53: 72 | M53: 150 | N53: 72.56 | O53: 36.28 | P53: 72.76 | Q53: 36.38 | R53: 72.66 | S53: 61.33 | T53: 3
A54: 52 | B54: 黎海婵 | C54: 女 | D54: 汉族 | E54: 4245041401002 | F54: 梧州职业学院（梧州市职业教育中心） | G54: 专业技术岗位10 | H54: 1450401258 | I54: 1 | J54: 163.50 | K54: 98.5 | L54: 75 | M54: 173.5 | N54: 72.02 | O54: 36.01 | P54: 75.24 | Q54: 37.62 | R54: 73.63 | S54: 65.73 | T54: 2
A55: 53 | B55: 黎柳 | C55: 女 | D55: 汉族 | E55: 4245041402115 | K55: 74.5 | L55: 95.5 | M55: 170 | N55: 80.98 | O55: 40.49 | P55: 79.2 | Q55: 39.6 | R55: 80.09 | S55: 68.38 | T55: 1
A56: 54 | B56: 黄媛媛 | C56: 女 | D56: 壮族 | E56: 4245041400615 | K56: 90 | L56: 73.5 | M56: 163.5 | N56: 75.92 | O56: 37.96 | P56: 74.54 | Q56: 37.27 | R56: 75.23 | S56: 64.87 | T56: 3
A57: 55 | B57: 袁祺皓 | C57: 男 | D57: 汉族 | E57: 4245041402103 | F57: 梧州职业学院（梧州市职业教育中心） | G57: 专业技术岗位11 | H57: 1450401259 | I57: 2 | J57: 166.00 | K57: 102 | L57: 76 | M57: 178 | N57: 75.7 | O57: 37.85 | P57: 77 | Q57: 38.5 | R57: 76.35 | S57: 67.84 | T57: 2
A58: 56 | B58: 莫丹桦 | C58: 女 | D58: 汉族 | E58: 4245041401612 | K58: 91.5 | L58: 84 | M58: 175.5 | N58: 77.2 | O58: 38.6 | P58: 80.8 | Q58: 40.4 | R58: 79.00 | S58: 68.75 | T58: 1
A59: 57 | B59: 韦翠玲 | C59: 女 | D59: 汉族 | E59: 4245041401807 | K59: 99 | L59: 70 | M59: 169 | N59: 72.6 | O59: 36.3 | P59: 80.6 | Q59: 40.3 | R59: 76.60 | S59: 66.47 | T59: 4
A60: 58 | B60: 李原 | C60: 女 | D60: 瑶族 | E60: 4245041400215 | K60: 92.5 | L60: 75.5 | M60: 168 | N60: 80.4 | O60: 40.2 | P60: 76.8 | Q60: 38.4 | R60: 78.60 | S60: 67.30 | T60: 3
A61: 59 | B61: 黄天凤 | C61: 女 | D61: 汉族 | E61: 4245041401310 | K61: 80.5 | L61: 85.5 | M61: 166 | N61: 64 | O61: 32 | P61: 70.4 | Q61: 35.2 | R61: 67.20 | S61: 61.27 | T61: 6
A62: 60 | B62: 李荣艳 | C62: 女 | D62: 汉族 | E62: 4245041400909 | K62: 76.5 | L62: 89.5 | M62: 166 | N62: 70.7 | O62: 35.35 | P62: 73.2 | Q62: 36.6 | R62: 71.95 | S62: 63.64 | T62: 5
A63: 61 | B63: 李美琪 | C63: 女 | D63: 汉族 | E63: 4245041401529 | F63: 梧州职业学院（梧州市职业教育中心） | G63: 专业技术岗位12 | H63: 1450401260 | I63: 2 | J63: 124.00 | K63: 76 | L63: 68.5 | M63: 144.5 | N63: 61.6 | O63: 30.8 | P63: 83.4 | Q63: 41.7 | R63: 72.50 | S63: 60.33 | T63: 2
A64: 62 | B64: 颜秋清 | C64: 女 | D64: 汉族 | E64: 4245041400529 | K64: 64 | L64: 77 | M64: 141 | N64: 86.6 | O64: 43.3 | P64: 88.2 | Q64: 44.1 | R64: 87.40 | S64: 67.20 | T64: 1
A65: 63 | B65: 邓伟林 | C65: 男 | D65: 汉族 | E65: 4245041401828 | K65: 68 | L65: 65.5 | M65: 133.5 | N65: 65.8 | O65: 32.9 | P65: 77.6 | Q65: 38.8 | R65: 71.70 | S65: 58.10 | T65: 6
A66: 64 | B66: 蒙景新 | C66: 男 | D66: 汉族 | E66: 4245041401515 | K66: 64 | L66: 69.5 | M66: 133.5 | N66: 66.6 | O66: 33.3 | P66: 82.6 | Q66: 41.3 | R66: 74.60 | S66: 59.55 | T66: 4
A67: 65 | B67: 吴滨颖 | C67: 男 | D67: 汉族 | E67: 4245041401817 | K67: 62 | L67: 65 | M67: 127 | N67: 71.2 | O67: =N67*0.5 -> 35.6 | P67: 81 | Q67: =P67*0.5 -> 40.5 | R67: 76.10 | S67: =M67/3*50%+R67*50% -> 59.22 | T67: 5
A68: 66 | B68: 程永康 | C68: 男 | D68: 汉族 | E68: 4245041400304 | K68: 69.5 | L68: 54.5 | M68: 124 | N68: 74 | O68: 37 | P68: 83.6 | Q68: 41.8 | R68: 78.80 | S68: 60.07 | T68: 3
A69: 67 | B69: 李褚诗华 | C69: 男 | D69: 汉族 | E69: 4245041401623 | F69: 梧州职业学院（梧州市职业教育中心） | G69: 专业技术岗位13 | H69: 1450401261 | I69: 1 | J69: 157.00 | K69: 93.5 | L69: 71 | M69: 164.5 | N69: 75.6 | O69: 37.8 | P69: 79.8 | Q69: 39.9 | R69: 77.70 | S69: 66.27 | T69: 1
A70: 68 | B70: 罗天德 | C70: 男 | D70: 汉族 | E70: 4245041401409 | K70: 96 | L70: 67.5 | M70: 163.5 | N70: 65.4 | O70: 32.7 | P70: 69.4 | Q70: 34.7 | R70: 67.40 | S70: 60.95 | T70: 3
A71: 69 | B71: 姚锦杰 | C71: 男 | D71: 汉族 | E71: 4245041402229 | K71: 77 | L71: 80 | M71: 157 | N71: 70.8 | O71: 35.4 | P71: 72.4 | Q71: 36.2 | R71: 71.60 | S71: 61.97 | T71: 2
A72: 70 | B72: 梁梅 | C72: 女 | D72: 汉族 | E72: 4245041401704 | F72: 梧州职业学院（梧州市职业教育中心） | G72: 专业技术岗位16 | H72: 1450401264 | I72: 1 | J72: 164.00 | K72: 95 | L72: 90 | M72: 185 | N72: 72.4 | O72: 36.2 | P72: 67.54 | Q72: 33.77 | R72: 69.97 | S72: 65.82 | T72: 2
A73: 71 | B73: 莫丽霜 | C73: 女 | D73: 汉族 | E73: 4245041400918 | K73: 94 | L73: 82.5 | M73: 176.5 | N73: 75.9 | O73: 37.95 | P73: 78 | Q73: 39 | R73: =O73+Q73 -> 76.95 | S73: 67.89 | T73: 1
A74: 72 | B74: 蒙棹 | C74: 男 | D74: 汉族 | E74: 4245041401208 | K74: 92.5 | L74: 71.5 | M74: 164 | N74: 73.16 | O74: 36.58 | P74: 79.78 | Q74: 39.89 | R74: 76.47 | S74: 65.57 | T74: 3
A75: 73 | B75: 廖文清 | C75: 女 | D75: 汉族 | E75: 4245041400223 | F75: 梧州职业学院（梧州市职业教育中心） | G75: 专业技术岗位17 | H75: 1450401265 | I75: 1 | J75: 150.50 | K75: 102.5 | L75: 95 | M75: 197.5 | N75: 71.7 | O75: 35.85 | P75: 82 | Q75: 41 | R75: 76.85 | S75: 71.34 | T75: 1
A76: 74 | B76: 黄培荣 | C76: 男 | D76: 汉族 | E76: 4245041401728 | K76: 80 | L76: 75.5 | M76: 155.5 | N76: 0 | O76: 0 | P76: 0 | Q76: 0 | R76: 0.00 | S76: 25.92 | T76: 3
A77: 75 | B77: 梁敏烨 | C77: 女 | D77: 汉族 | E77: 4245041400927 | K77: 67 | L77: 83.5 | M77: 150.5 | N77: 80.1 | O77: 40.05 | P77: 82.6 | Q77: 41.3 | R77: =O77+Q77 -> 81.35 | S77: 65.76 | T77: 2
A78: 76 | B78: 郭钊明 | C78: 男 | D78: 汉族 | E78: 4245041400509 | F78: 梧州职业学院（梧州市职业教育中心） | G78: 专业技术岗位18 | H78: 1450401266 | I78: 1 | J78: 150.50 | K78: 92 | L78: 66.5 | M78: 158.5 | N78: 0 | O78: 0 | P78: 0 | Q78: 0 | R78: 0.00 | S78: 26.42 | T78: 2
A79: 77 | B79: 卢钰燕 | C79: 女 | D79: 汉族 | E79: 4245041401305 | K79: 76 | L79: 74.5 | M79: 150.5 | N79: 74.5 | O79: 37.25 | P79: 73 | Q79: 36.5 | R79: 73.75 | S79: 61.96 | T79: 1
A80: 78 | B80: 蒙彦 | C80: 男 | D80: 汉族 | E80: 4245041402311 | F80: 梧州职业学院（梧州市职业教育中心） | G80: 专业技术岗位19 | H80: 1450401267 | I80: 1 | J80: 157.50 | K80: 100 | L80: 79.5 | M80: 179.5 | N80: 84.9 | O80: 42.45 | P80: 85.94 | Q80: 42.97 | R80: 85.42 | S80: 72.63 | T80: 1
A81: 79 | B81: 李欣 | C81: 女 | D81: 汉族 | E81: 4245041402227 | K81: 96 | L81: 69.5 | M81: 165.5 | N81: 79.02 | O81: 39.51 | P81: 83.36 | Q81: 41.68 | R81: 81.19 | S81: 68.18 | T81: 2
A82: 80 | B82: 罗凯文 | C82: 女 | D82: 汉族 | E82: 4245041401221 | K82: 87.5 | L82: 70 | M82: 157.5 | N82: 81.02 | O82: 40.51 | P82: 79.98 | Q82: 39.99 | R82: 80.50 | S82: 66.50 | T82: 3
A83: 81 | B83: 黄俞梦 | C83: 女 | D83: 汉族 | E83: 4245041400911 | F83: 梧州职业学院（梧州市职业教育中心） | G83: 专业技术岗位20 | H83: 1450401268 | I83: 4 | J83: 165.00 | K83: 95.5 | L83: 94 | M83: 189.5 | N83: 79.4 | O83: 39.7 | P83: 84.2 | Q83: 42.1 | R83: 81.80 | S83: 72.48 | T83: 1
A84: 82 | B84: 陈胜兰 | C84: 女 | D84: 汉族 | E84: 4245041401930 | K84: 89.5 | L84: 87.5 | M84: 177 | N84: 80 | O84: 40 | P84: 85 | Q84: 42.5 | R84: 82.50 | S84: 70.75 | T84: 4
A85: 83 | B85: 王建宁 | C85: 女 | D85: 汉族 | E85: 4245041400220 | K85: 103.5 | L85: 72.5 | M85: 176 | N85: 71.8 | O85: 35.9 | P85: 84.6 | Q85: 42.3 | R85: 78.20 | S85: 68.43 | T85: 6
A86: 84 | B86: 邓杏丽 | C86: 女 | D86: 汉族 | E86: 4245041400106 | K86: 96.5 | L86: 76.5 | M86: 173 | N86: 79.4 | O86: 39.7 | P86: 84 | Q86: 42 | R86: 81.70 | S86: 69.68 | T86: 5
A87: 85 | B87: 焦婉莹 | C87: 女 | D87: 汉族 | E87: 4245041400820 | K87: 103 | L87: 69.5 | M87: 172.5 | N87: 85.6 | O87: 42.8 | P87: 88.2 | Q87: 44.1 | R87: 86.90 | S87: 72.20 | T87: 2
A88: 86 | B88: 李君婷 | C88: 女 | D88: 汉族 | E88: 4245041402309 | K88: 82.5 | L88: 89.5 | M88: 172 | N88: 68.6 | O88: 34.3 | P88: 84.2 | Q88: 42.1 | R88: 76.40 | S88: 66.87 | T88: 7
A89: 87 | B89: 李雪菲 | C89: 女 | D89: 汉族 | E89: 4245041402024 | K89: 78 | L89: 93.5 | M89: 171.5 | N89: 71 | O89: 35.5 | P89: 78.6 | Q89: 39.3 | R89: 74.80 | S89: 65.98 | T89: 8
A90: 88 | B90: 冯彬 | C90: 女 | D90: 汉族 | E90: 4245041401524 | K90: 88.5 | L90: 79 | M90: 167.5 | N90: 66.6 | O90: 33.3 | P90: 75.6 | Q90: 37.8 | R90: 71.10 | S90: 63.47 | T90: 11
A91: 89 | B91: 黄子益 | C91: 女 | D91: 汉族 | E91: 4245041402129 | K91: 84 | L91: 82 | M91: 166 | N91: 70 | O91: 35 | P91: 77.2 | Q91: 38.6 | R91: 73.60 | S91: 64.47 | T91: 10
A92: 90 | B92: 吴俊璇 | C92: 女 | D92: 仫佬族 | E92: 4245041400126 | K92: 99 | L92: 66.5 | M92: 165.5 | N92: 66.6 | O92: 33.3 | P92: 83 | Q92: 41.5 | R92: 74.80 | S92: 64.98 | T92: 9
A93: 91 | B93: 武格羽 | C93: 女 | D93: 汉族 | E93: 4245041401722 | K93: 95.5 | L93: 70 | M93: 165.5 | N93: 85.8 | O93: 42.9 | P93: 89 | Q93: 44.5 | R93: 87.40 | S93: 71.28 | T93: 3
A94: 92 | B94: 欧远娟 | C94: 女 | D94: 汉族 | E94: 4245041400227 | K94: 74.5 | L94: 90.5 | M94: 165 | N94: 65.8 | O94: 32.9 | P94: 76.8 | Q94: 38.4 | R94: 71.30 | S94: 63.15 | T94: 12

Sheet Sheet2

Sheet Sheet3
